fUSD/lending_fUSD_20260612
["ID","MTS","AMOUNT","RATE_DAILY","PERIOD"]
[424846410,1781202643000,-500.0,0.00013698,2]
[424846412,1781202643000,-500.0,0.00013698,2]
[424846414,1781202643000,-500.0,0.00013698,2]
[424846416,1781202643000,-500.0,0.00013698,2]
[424846423,1781202643000,-500.0,0.00013698,2]
[424846425,1781202643000,-500.0,0.00013698,2]
[424846431,1781202643000,-356.80515996,0.00013698,2]
[424846424,1781202643000,-275.16598363,0.00013698,2]
[424846407,1781202643000,-500.0,0.00013698,2]
[424846463,1781202643000,-500.0,0.00013698,2]
[424846454,1781202643000,-567.54,0.00013698,2]
[424846477,1781202643000,-500.0,0.00013698,2]
[424846532,1781202643000,-567.54,0.00013698,2]
[424846538,1781202643000,-807.75,0.00013698,2]
[424846536,1781202643000,-567.54,0.00013698,2]
[424846539,1781202643000,-500.0,0.00013698,2]
[424846541,1781202643000,-500.0,0.00013698,2]
[424846542,1781202643000,-807.75,0.00013698,2]
[424846540,1781202643000,-807.75,0.00013698,2]
[424846543,1781202643000,-500.0,0.00013698,2]
[424846545,1781202643000,-807.75,0.00013698,2]
[424846544,1781202643000,-807.75,0.00013698,2]
[424846548,1781202643000,-807.75,0.00013698,2]
[424846534,1781202643000,-500.0,0.00013698,2]
[424846549,1781202643000,-807.75,0.00013698,2]
[424846551,1781202643000,-807.75,0.00013698,2]
[424846550,1781202643000,-807.75,0.00013698,2]
[424846552,1781202643000,-807.75,0.00013698,2]
[424846553,1781202643000,-807.75,0.00013698,2]
[424846554,1781202643000,-807.75,0.00013698,2]
[424846555,1781202643000,-807.75,0.00013698,2]
[424846557,1781202643000,-807.75,0.00013698,2]
[424846558,1781202643000,-807.75,0.00013698,2]
[424846556,1781202643000,-807.75,0.00013698,2]
[424846559,1781202643000,-807.91379386,0.00013698,2]
[424846465,1781202643000,-567.54,0.00013698,2]
[424846547,1781202643000,-807.75,0.00013698,2]
[424846530,1781202643000,-500.0,0.00013698,2]
[424846546,1781202643000,-807.75,0.00013698,2]
[424846525,1781202643000,-500.0,0.00013698,2]
[424846528,1781202643000,-567.54,0.00013698,2]
[424846481,1781202643000,-500.0,0.00013698,2]
[424846483,1781202643000,-567.54,0.00013698,2]
[424846472,1781202643000,-500.0,0.00013698,2]
[424846470,1781202643000,-567.54,0.00013698,2]
[424846468,1781202643000,-500.0,0.00013698,2]
[424846487,1781202643000,-567.54,0.00013698,2]
[424846485,1781202643000,-500.0,0.00013698,2]
[424846474,1781202643000,-567.54,0.00013698,2]
[424846492,1781202643000,-567.54,0.00013698,2]
[424846494,1781202643000,-500.0,0.00013698,2]
[424846489,1781202643000,-500.0,0.00013698,2]
[424846497,1781202643000,-807.75,0.00013698,2]
[424846479,1781202643000,-567.54,0.00013698,2]
[424846523,1781202643000,-807.75,0.00013698,2]
[424846502,1781202643000,-807.75,0.00013698,2]
[424846504,1781202643000,-500.0,0.00013698,2]
[424846506,1781202643000,-567.54,0.00013698,2]
[424846509,1781202643000,-567.54,0.00013698,2]
[424846513,1781202643000,-500.0,0.00013698,2]
[424846511,1781202643000,-807.75,0.00013698,2]
[424846515,1781202643000,-567.54,0.00013698,2]
[424846517,1781202643000,-807.75,0.00013698,2]
[424846521,1781202643000,-567.54,0.00013698,2]
[424846519,1781202643000,-500.0,0.00013698,2]
[424846500,1781202643000,-500.0,0.00013698,2]
[424846596,1781202644000,-500.0,0.00013698,2]
[424846614,1781202644000,-500.0,0.00013698,2]
[424846597,1781202644000,-500.0,0.00013698,2]
[424846595,1781202644000,-500.0,0.00013698,2]
[424846592,1781202644000,-500.0,0.00013698,2]
[424846593,1781202644000,-500.0,0.00013698,2]
[424846589,1781202644000,-500.0,0.00013698,2]
[424846586,1781202644000,-500.0,0.00013698,2]
[424846590,1781202644000,-500.0,0.00013698,2]
[424846606,1781202644000,-529.77545111,0.00013698,2]
[424846594,1781202644000,-500.0,0.00013698,2]
[424846598,1781202644000,-500.0,0.00013698,2]
[424846607,1781202644000,-500.0,0.00013698,2]
[424846601,1781202644000,-500.0,0.00013698,2]
[424846600,1781202644000,-500.0,0.00013698,2]
[424846604,1781202644000,-500.0,0.00013698,2]
[424846602,1781202644000,-500.0,0.00013698,2]
[424846603,1781202644000,-500.0,0.00013698,2]
[424846610,1781202644000,-500.0,0.00013698,2]
[424846609,1781202644000,-500.0,0.00013698,2]
[424846615,1781202644000,-500.0,0.00013698,2]
[424846612,1781202644000,-500.0,0.00013698,2]
[424846611,1781202644000,-500.0,0.00013698,2]
[424846617,1781202644000,-500.0,0.00013698,2]
[424846599,1781202644000,-500.0,0.00013698,2]
[424846588,1781202644000,-500.0,0.00013698,2]
[424846561,1781202644000,-500.0,0.00013698,2]
[424846587,1781202644000,-500.0,0.00013698,2]
[424846560,1781202644000,-500.0,0.00013698,2]
[424846562,1781202644000,-500.0,0.00013698,2]
[424846567,1781202644000,-500.0,0.00013698,2]
[424846569,1781202644000,-500.0,0.00013698,2]
[424846565,1781202644000,-500.0,0.00013698,2]
[424846570,1781202644000,-500.0,0.00013698,2]
[424846566,1781202644000,-500.0,0.00013698,2]
[424846568,1781202644000,-500.0,0.00013698,2]
[424846573,1781202644000,-500.0,0.00013698,2]
[424846572,1781202644000,-500.0,0.00013698,2]
[424846564,1781202644000,-500.0,0.00013698,2]
[424846563,1781202644000,-500.0,0.00013698,2]
[424846571,1781202644000,-500.0,0.00013698,2]
[424846575,1781202644000,-500.0,0.00013698,2]
[424846574,1781202644000,-500.0,0.00013698,2]
[424846578,1781202644000,-500.0,0.00013698,2]
[424846577,1781202644000,-500.0,0.00013698,2]
[424846576,1781202644000,-500.0,0.00013698,2]
[424846582,1781202644000,-500.0,0.00013698,2]
[424846580,1781202644000,-500.0,0.00013698,2]
[424846584,1781202644000,-457.12873569,0.00013698,2]
[424846579,1781202644000,-542.16653509,0.00013698,2]
[424846583,1781202644000,-500.0,0.00013698,2]
[424846581,1781202644000,-500.0,0.00013698,2]
[424846585,1781202644000,-500.0,0.00013698,2]
[424846591,1781202644000,-500.0,0.00013698,2]
[424846608,1781202644000,-500.0,0.00013698,2]
[424846605,1781202644000,-500.0,0.00013698,2]
[424846613,1781202644000,-500.0,0.00013698,2]
[424846648,1781202644000,-500.0,0.00013699,2]
[424846649,1781202644000,-500.0,0.00013699,2]
[424846645,1781202644000,-500.0,0.00013699,2]
[424846647,1781202644000,-500.0,0.00013699,2]
[424846644,1781202644000,-500.0,0.00013699,2]
[424846646,1781202644000,-500.0,0.00013699,2]
[424846653,1781202644000,-500.0,0.00013699,2]
[424846655,1781202644000,-500.0,0.00013699,2]
[424846656,1781202644000,-500.0,0.00013699,2]
[424846654,1781202644000,-500.0,0.00013699,2]
[424846657,1781202644000,-500.0,0.00013699,2]
[424846664,1781202644000,-500.0,0.00013699,2]
[424846658,1781202644000,-500.0,0.00013699,2]
[424846660,1781202644000,-500.0,0.00013699,2]
[424846661,1781202644000,-500.0,0.00013699,2]
[424846659,1781202644000,-500.0,0.00013699,2]
[424846662,1781202644000,-548.82480124,0.00013699,2]
[424846663,1781202644000,-500.0,0.00013699,2]
[424846666,1781202644000,-500.0,0.00013699,2]
[424846665,1781202644000,-500.0,0.00013699,2]
[424846667,1781202644000,-500.0,0.00013699,2]
[424846669,1781202644000,-500.0,0.00013699,2]
[424846670,1781202644000,-500.0,0.00013699,2]
[424846671,1781202644000,-500.0,0.00013699,2]
[424846616,1781202644000,-500.0,0.00013698,2]
[424846643,1781202644000,-500.0,0.00013699,2]
[424846642,1781202644000,-500.0,0.00013699,2]
[424846668,1781202644000,-500.0,0.00013699,2]
[424846652,1781202644000,-500.0,0.00013699,2]
[424846641,1781202644000,-814.68,0.00013699,2]
[424846619,1781202644000,-500.0,0.00013698,2]
[424846618,1781202644000,-500.0,0.00013698,2]
[424846620,1781202644000,-261.02640831,0.00013698,2]
[424846623,1781202644000,-727.72,0.00013698,2]
[424846621,1781202644000,-727.72,0.00013698,2]
[424846622,1781202644000,-727.72,0.00013698,2]
[424846627,1781202644000,-727.72,0.00013698,2]
[424846628,1781202644000,-727.72,0.00013698,2]
[424846625,1781202644000,-727.72,0.00013698,2]
[424846626,1781202644000,-727.72,0.00013698,2]
[424846629,1781202644000,-727.72,0.00013698,2]
[424846624,1781202644000,-727.72,0.00013698,2]
[424846633,1781202644000,-171.51496798,0.00013698,2]
[424846631,1781202644000,-727.72,0.00013698,2]
[424846640,1781202644000,-162.93,0.00013699,2]
[424846636,1781202644000,-337.85,0.00013699,2]
[424846639,1781202644000,-195.52,0.00013699,2]
[424846634,1781202644000,-2500.0,0.00013699,2]
[424846650,1781202644000,-500.0,0.00013699,2]
[424846638,1781202644000,-234.62,0.00013699,2]
[424846630,1781202644000,-727.72,0.00013698,2]
[424846635,1781202644000,-200.0,0.00013699,2]
[424846632,1781202644000,-500.0,0.00013698,2]
[424846637,1781202644000,-281.54,0.00013699,2]
[424846651,1781202644000,-500.0,0.00013699,2]
[424846694,1781202645000,-500.0,0.00013699,2]
[424846693,1781202645000,-500.0,0.00013699,2]
[424846704,1781202645000,-500.0,0.00013699,2]
[424846700,1781202645000,-500.0,0.00013699,2]
[424846708,1781202645000,-500.0,0.00013699,2]
[424846709,1781202645000,-500.0,0.00013699,2]
[424846699,1781202645000,-500.0,0.00013699,2]
[424846701,1781202645000,-500.0,0.00013699,2]
[424846703,1781202645000,-500.0,0.00013699,2]
[424846702,1781202645000,-500.0,0.00013699,2]
[424846712,1781202645000,-500.0,0.00013699,2]
[424846706,1781202645000,-500.0,0.00013699,2]
[424846707,1781202645000,-500.0,0.00013699,2]
[424846710,1781202645000,-500.0,0.00013699,2]
[424846713,1781202645000,-500.0,0.00013699,2]
[424846711,1781202645000,-500.0,0.00013699,2]
[424846722,1781202645000,-500.0,0.00013699,2]
[424846715,1781202645000,-539.42321104,0.00013699,2]
[424846692,1781202645000,-500.0,0.00013699,2]
[424846721,1781202645000,-500.0,0.00013699,2]
[424846705,1781202645000,-500.0,0.00013699,2]
[424846691,1781202645000,-500.0,0.00013699,2]
[424846685,1781202645000,-500.0,0.00013699,2]
[424846695,1781202645000,-500.0,0.00013699,2]
[424846718,1781202645000,-500.0,0.00013699,2]
[424846673,1781202645000,-500.0,0.00013699,2]
[424846675,1781202645000,-500.0,0.00013699,2]
[424846672,1781202645000,-500.0,0.00013699,2]
[424846674,1781202645000,-500.0,0.00013699,2]
[424846676,1781202645000,-500.0,0.00013699,2]
[424846680,1781202645000,-500.0,0.00013699,2]
[424846679,1781202645000,-500.0,0.00013699,2]
[424846682,1781202645000,-500.0,0.00013699,2]
[424846677,1781202645000,-500.0,0.00013699,2]
[424846678,1781202645000,-500.0,0.00013699,2]
[424846683,1781202645000,-500.0,0.00013699,2]
[424846681,1781202645000,-500.0,0.00013699,2]
[424846684,1781202645000,-500.0,0.00013699,2]
[424846687,1781202645000,-500.0,0.00013699,2]
[424846688,1781202645000,-500.0,0.00013699,2]
[424846686,1781202645000,-500.0,0.00013699,2]
[424846690,1781202645000,-500.0,0.00013699,2]
[424846697,1781202645000,-500.0,0.00013699,2]
[424846698,1781202645000,-500.0,0.00013699,2]
[424846689,1781202645000,-500.0,0.00013699,2]
[424846696,1781202645000,-500.0,0.00013699,2]
[424846723,1781202645000,-500.0,0.00013699,2]
[424846720,1781202645000,-500.0,0.00013699,2]
[424846762,1781202645000,-150.0,0.00013928,2]
[424846749,1781202645000,-150.0,0.00013821,2]
[424846751,1781202645000,-300.2,0.00013826,2]
[424846750,1781202645000,-221.367193,0.00013824,2]
[424846747,1781202645000,-150.0,0.00013796,2]
[424846755,1781202645000,-150.0,0.00013862,2]
[424846758,1781202645000,-727.72,0.00013903,2]
[424846759,1781202645000,-300.2,0.00013911,2]
[424846756,1781202645000,-300.2,0.00013863,2]
[424846757,1781202645000,-150.0,0.00013884,2]
[424846760,1781202645000,-318.32,0.00013916,2]
[424846764,1781202645000,-300.2,0.00013939,2]
[424846761,1781202645000,-303.82,0.00013916,2]
[424846763,1781202645000,-150.0,0.00013937,2]
[424846765,1781202645000,-300.2,0.00013956,2]
[424846767,1781202645000,-150.0,0.00013973,2]
[424846768,1781202645000,-18137.86593266,0.00013985,2]
[424846769,1781202645000,-150.0,0.00013987,2]
[424846766,1781202645000,-2000.0,0.0001397,2]
[424846770,1781202645000,-250.0,0.00014,2]
[424846771,1781202645000,-303.82,0.00014004,2]
[424846724,1781202645000,-500.0,0.00013699,2]
[424846744,1781202645000,-300.2,0.00013764,2]
[424846746,1781202645000,-150.0,0.00013787,2]
[424846748,1781202645000,-303.82,0.0001382,2]
[424846754,1781202645000,-150.0,0.00013862,2]
[424846725,1781202645000,-500.0,0.00013699,2]
[424846726,1781202645000,-500.0,0.00013699,2]
[424846729,1781202645000,-500.0,0.00013699,2]
[424846727,1781202645000,-500.0,0.00013699,2]
[424846730,1781202645000,-500.0,0.00013699,2]
[424846733,1781202645000,-500.0,0.00013699,2]
[424846752,1781202645000,-9906.41802515,0.00013833,2]
[424846732,1781202645000,-500.0,0.00013699,2]
[424846731,1781202645000,-500.0,0.00013699,2]
[424846734,1781202645000,-500.0,0.00013699,2]
[424846735,1781202645000,-500.0,0.00013699,2]
[424846728,1781202645000,-500.0,0.00013699,2]
[424846736,1781202645000,-600.11152647,0.00013699,2]
[424846739,1781202645000,-303.82,0.00013714,2]
[424846737,1781202645000,-653.08,0.000137,2]
[424846738,1781202645000,-150.0,0.00013708,2]
[424846741,1781202645000,-150.0,0.00013752,2]
[424846743,1781202645000,-468.995441,0.00013756,2]
[424846742,1781202645000,-196.634552,0.00013756,2]
[424846740,1781202645000,-300.2,0.00013726,2]
[424846745,1781202645000,-336.45,0.00013768,2]
[424846753,1781202645000,-150.0,0.0001384,2]
[424846812,1781202646000,-150.0,0.00014413,2]
[424846809,1781202646000,-150.0,0.00014396,2]
[424846808,1781202646000,-150.0,0.00014396,2]
[424846807,1781202646000,-150.0,0.00014396,2]
[424846806,1781202646000,-150.0,0.00014387,2]
[424846802,1781202646000,-150.0,0.00014281,2]
[424846805,1781202646000,-150.0,0.00014369,2]
[424846810,1781202646000,-150.0,0.00014396,2]
[424846801,1781202646000,-2314.07400739,0.00014249,2]
[424846811,1781202646000,-278.60891467,0.00014396,2]
[424846814,1781202646000,-150.0,0.00014424,2]
[424846803,1781202646000,-150.0,0.0001432,2]
[424846821,1781202646000,-150.0,0.00014537,2]
[424846825,1781202646000,-150.0,0.00014612,2]
[424846823,1781202646000,-150.0,0.00014546,2]
[424846813,1781202646000,-150.0,0.00014424,2]
[424846822,1781202646000,-9906.41802515,0.00014544,2]
[424846818,1781202646000,-150.0,0.00014501,2]
[424846816,1781202646000,-150.0,0.00014457,2]
[424846819,1781202646000,-151.0,0.00014505,2]
[424846817,1781202646000,-150.0,0.00014487,2]
[424846820,1781202646000,-1486.12,0.0001452,2]
[424846824,1781202646000,-150.0,0.0001459,2]
[424846826,1781202646000,-150.0,0.00014612,2]
[424846828,1781202646000,-2000.0,0.00014639,2]
[424846804,1781202646000,-150.0,0.00014325,2]
[424846815,1781202646000,-18137.86593266,0.00014443,2]
[424846800,1781202646000,-150.0,0.00014237,2]
[424846784,1781202646000,-318.35,0.00014136,2]
[424846798,1781202646000,-150.0,0.00014237,2]
[424846774,1781202646000,-150.0,0.0001405,2]
[424846775,1781202646000,-150.0,0.0001405,2]
[424846772,1781202646000,-150.0,0.00014017,2]
[424846773,1781202646000,-300.2,0.00014041,2]
[424846777,1781202646000,-300.2,0.00014072,2]
[424846783,1781202646000,-823.0,0.00014132,2]
[424846785,1781202646000,-150.0,0.00014149,2]
[424846787,1781202646000,-300.2,0.00014158,2]
[424846786,1781202646000,-150.0,0.00014154,2]
[424846776,1781202646000,-150.0,0.00014061,2]
[424846778,1781202646000,-303.82,0.00014086,2]
[424846779,1781202646000,-150.0,0.00014087,2]
[424846780,1781202646000,-150.0,0.00014105,2]
[424846781,1781202646000,-300.2,0.00014109,2]
[424846782,1781202646000,-300.2,0.0001412,2]
[424846788,1781202646000,-336.45,0.00014163,2]
[424846791,1781202646000,-9906.41802515,0.00014188,2]
[424846790,1781202646000,-303.82,0.00014163,2]
[424846789,1781202646000,-318.32,0.00014163,2]
[424846794,1781202646000,-150.0,0.00014237,2]
[424846793,1781202646000,-736.0,0.00014222,2]
[424846792,1781202646000,-150.0,0.00014193,2]
[424846796,1781202646000,-150.0,0.00014237,2]
[424846795,1781202646000,-150.0,0.00014237,2]
[424846797,1781202646000,-150.0,0.00014237,2]
[424846799,1781202646000,-150.0,0.00014237,2]
[424846835,1781202646000,-150.0,0.00014722,2]
[424846874,1781202646000,-17416.39508,0.00014978,2]
[424846834,1781202646000,-150.0,0.00014687,2]
[424846861,1781202646000,-406592.3938336,0.00014973,2]
[424846867,1781202646000,-727.72,0.00014977,2]
[424846862,1781202646000,-727.72,0.00014977,2]
[424846865,1781202646000,-727.72,0.00014977,2]
[424846870,1781202646000,-727.72,0.00014977,2]
[424846868,1781202646000,-727.72,0.00014977,2]
[424846871,1781202646000,-727.72,0.00014977,2]
[424846864,1781202646000,-727.72,0.00014977,2]
[424846869,1781202646000,-727.72,0.00014977,2]
[424846866,1781202646000,-727.72,0.00014977,2]
[424846876,1781202646000,-14460.9906828,0.00014978,2]
[424846873,1781202646000,-727.72,0.00014977,2]
[424846872,1781202646000,-727.72,0.00014977,2]
[424846875,1781202646000,-209.3116957,0.00014978,2]
[424846877,1781202646000,-1143069.4716374,0.00014978,2]
[424846878,1781202646000,-151.0,0.00014978,2]
[424846880,1781202646000,-152.603067,0.00014978,2]
[424846879,1781202646000,-608574.0043527,0.00014978,2]
[424846881,1781202646000,-151.0,0.00014978,2]
[424846882,1781202646000,-1451.861569,0.00014978,2]
[424846885,1781202646000,-1451.861569,0.00014978,2]
[424846883,1781202646000,-1451.861569,0.00014978,2]
[424846884,1781202646000,-1451.861569,0.00014978,2]
[424846887,1781202646000,-257.36274764,0.00014986,2]
[424846836,1781202646000,-201.121001,0.00014725,2]
[424846863,1781202646000,-727.72,0.00014977,2]
[424846854,1781202646000,-10000.0,0.000149,2]
[424846886,1781202646000,-500.0,0.00014985,2]
[424846855,1781202646000,-2800.0,0.000149,5]
[424846827,1781202646000,-150.0,0.00014634,2]
[424846830,1781202646000,-229.789536,0.00014652,2]
[424846831,1781202646000,-150.0,0.00014653,2]
[424846829,1781202646000,-226.392648,0.00014652,2]
[424846832,1781202646000,-926.65,0.00014655,2]
[424846833,1781202646000,-150.0,0.00014678,2]
[424846840,1781202646000,-150.0,0.00014799,2]
[424846842,1781202646000,-2800.0,0.000148,5]
[424846858,1781202646000,-2314.07400739,0.000149,2]
[424846844,1781202646000,-150.0,0.0001482,2]
[424846843,1781202646000,-150.0,0.0001481,2]
[424846841,1781202646000,-150.0,0.00014799,2]
[424846839,1781202646000,-169.34674,0.00014798,2]
[424846845,1781202646000,-150.0,0.00014836,2]
[424846848,1781202646000,-3259.0,0.00014877,2]
[424846859,1781202646000,-150.0,0.00014942,2]
[424846846,1781202646000,-1500.0,0.00014848,2]
[424846857,1781202646000,-9906.41802515,0.000149,2]
[424846856,1781202646000,-18137.86593266,0.000149,2]
[424846849,1781202646000,-188.14874168,0.00014877,10]
[424846853,1781202646000,-5800.0,0.000149,2]
[424846852,1781202646000,-150.0,0.00014898,2]
[424846860,1781202646000,-234.25497419,0.00014963,2]
[424846850,1781202646000,-189.58928416,0.00014878,2]
[424846847,1781202646000,-150.0,0.00014854,2]
[424846838,1781202646000,-150.0,0.00014766,2]
[424846851,1781202646000,-1830.04177367,0.00014878,2]
[424846922,1781202647000,-1055.86,0.00014999,2]
[424846926,1781202647000,-1055.86,0.00014999,2]
[424846925,1781202647000,-1055.86,0.00014999,2]
[424846923,1781202647000,-1055.86,0.00014999,2]
[424846919,1781202647000,-961.55,0.00014999,2]
[424846928,1781202647000,-579.83,0.00014999,2]
[424846924,1781202647000,-1055.86,0.00014999,2]
[424846921,1781202647000,-961.63626089,0.00014999,2]
[424846929,1781202647000,-579.83,0.00014999,2]
[424846917,1781202647000,-961.55,0.00014999,2]
[424846920,1781202647000,-961.55,0.00014999,2]
[424846927,1781202647000,-1055.87093858,0.00014999,2]
[424846939,1781202647000,-568.22,0.00014999,2]
[424846934,1781202647000,-568.22,0.00014999,2]
[424846937,1781202647000,-568.22,0.00014999,2]
[424846933,1781202647000,-580.06141108,0.00014999,2]
[424846935,1781202647000,-568.22,0.00014999,2]
[424846932,1781202647000,-579.83,0.00014999,2]
[424846931,1781202647000,-579.83,0.00014999,2]
[424846936,1781202647000,-568.22,0.00014999,2]
[424846938,1781202647000,-568.22,0.00014999,2]
[424846940,1781202647000,-568.22,0.00014999,2]
[424846941,1781202647000,-568.22,0.00014999,2]
[424846942,1781202647000,-568.22,0.00014999,2]
[424846918,1781202647000,-961.55,0.00014999,2]
[424846944,1781202647000,-568.22,0.00014999,2]
[424846930,1781202647000,-579.83,0.00014999,2]
[424846915,1781202647000,-1067.36162372,0.00014999,5]
[424846894,1781202647000,-210.0975545,0.00014986,2]
[424846916,1781202647000,-961.55,0.00014999,2]
[424846943,1781202647000,-568.22,0.00014999,2]
[424846889,1781202647000,-279.86118902,0.00014986,2]
[424846888,1781202647000,-225.43309031,0.00014986,2]
[424846892,1781202647000,-208.1114482,0.00014986,2]
[424846893,1781202647000,-285.87761885,0.00014986,2]
[424846891,1781202647000,-150.75812701,0.00014986,2]
[424846890,1781202647000,-248.12091066,0.00014986,2]
[424846895,1781202647000,-289.90717118,0.00014986,2]
[424846904,1781202647000,-1055.86,0.00014998,2]
[424846905,1781202647000,-579.83,0.00014998,2]
[424846903,1781202647000,-961.55,0.00014998,2]
[424846898,1781202647000,-234.25497419,0.0001499,2]
[424846914,1781202647000,-1061.72415038,0.00014999,5]
[424846899,1781202647000,-151.0,0.00014997,2]
[424846897,1781202647000,-234.25497419,0.0001499,2]
[424846900,1781202647000,-151.0,0.00014997,2]
[424846901,1781202647000,-169.12,0.00014997,2]
[424846902,1781202647000,-151.0,0.00014997,2]
[424846907,1781202647000,-2503.54,0.00014998,2]
[424846908,1781202647000,-500.0,0.00014998,2]
[424846912,1781202647000,-408.73,0.00014998,2]
[424846911,1781202647000,-567.54,0.00014998,2]
[424846906,1781202647000,-568.22,0.00014998,2]
[424846913,1781202647000,-1012.89519472,0.00014999,5]
[424846910,1781202647000,-500.0,0.00014998,2]
[424846909,1781202647000,-500.0,0.00014998,2]
[424846896,1781202647000,-269.96297295,0.00014986,2]
[424846950,1781202647000,-2503.54,0.00014999,2]
[424847003,1781202647000,-1799.08,0.00015526,2]
[424846951,1781202647000,-2503.54,0.00014999,2]
[424846978,1781202647000,-200.0,0.00015,2]
[424846979,1781202647000,-1451.861569,0.00015,2]
[424846980,1781202647000,-1451.861569,0.00015,2]
[424846985,1781202647000,-151.0,0.00015068,2]
[424846981,1781202647000,-1451.861569,0.00015,2]
[424846988,1781202647000,-151.0,0.00015068,2]
[424846982,1781202647000,-1451.861569,0.00015,2]
[424846987,1781202647000,-151.0,0.00015068,2]
[424846983,1781202647000,-243.877629,0.00015066,2]
[424846986,1781202647000,-151.0,0.00015068,2]
[424846984,1781202647000,-450.27,0.00015068,2]
[424846990,1781202647000,-200.0,0.00015174,10]
[424847000,1781202647000,-3000.0,0.00015483,2]
[424846989,1781202647000,-200.0,0.0001515,2]
[424846991,1781202647000,-800.0,0.00015174,10]
[424846992,1781202647000,-158.55225596,0.00015218,2]
[424846993,1781202647000,-1000.0,0.00015224,2]
[424846994,1781202647000,-200.0,0.00015301,2]
[424846999,1781202647000,-3000.0,0.00015483,2]
[424846996,1781202647000,-1331.91,0.0001543,2]
[424846995,1781202647000,-1555.5,0.00015396,2]
[424846998,1781202647000,-301.32,0.00015483,2]
[424847001,1781202647000,-2879.39,0.00015483,2]
[424847004,1781202647000,-1152.0,0.00015535,2]
[424847002,1781202647000,-860.78,0.00015509,2]
[424846971,1781202647000,-567.54,0.00014999,2]
[424846972,1781202647000,-567.54,0.00014999,2]
[424846997,1781202647000,-332.98,0.0001543,2]
[424846970,1781202647000,-567.54,0.00014999,2]
[424846974,1781202647000,-2000.0,0.00014999,2]
[424846952,1781202647000,-2503.54,0.00014999,2]
[424846945,1781202647000,-568.43822883,0.00014999,2]
[424846953,1781202647000,-2503.54,0.00014999,2]
[424846948,1781202647000,-2503.54,0.00014999,2]
[424846946,1781202647000,-2503.54,0.00014999,2]
[424846949,1781202647000,-2503.54,0.00014999,2]
[424846947,1781202647000,-2503.54,0.00014999,2]
[424846955,1781202647000,-2503.54,0.00014999,2]
[424846958,1781202647000,-500.0,0.00014999,2]
[424846960,1781202647000,-500.0,0.00014999,2]
[424846957,1781202647000,-2503.74718452,0.00014999,2]
[424846959,1781202647000,-500.0,0.00014999,2]
[424846954,1781202647000,-2503.54,0.00014999,2]
[424846964,1781202647000,-500.0,0.00014999,2]
[424846961,1781202647000,-532.44926437,0.00014999,2]
[424846976,1781202647000,-666.0,0.00014999,2]
[424846975,1781202647000,-300.0,0.00014999,2]
[424846977,1781202647000,-3131831.80490328,0.00015,2]
[424846966,1781202647000,-500.0,0.00014999,2]
[424846969,1781202647000,-567.54,0.00014999,2]
[424846967,1781202647000,-500.0,0.00014999,2]